Workbook

Sheet 例題30 非等温気相PFR
A1: 微分方程式数 | B1: 2 | F1: 定数 | I1: T0= | J1: 1035 | K1: K | M1: <COCO_29_PFRHeat.fsd> | S1: D= | T1: 0.02669 | U1: m | V1: 0 | W1: 1100
A2: V= | B2: xA= | C2: T= | F2: FA0= | G2: 0.0376 | H2: mol/s | I2: Ta= | J2: 1100 | K2: K | M2: V | N2: L | O2: T | R2: xA | S2: a=(4/D)= | T2: =4/T1 -> 149.8688647 | U2: /m | V2: 0.001 | W2: 1100
A3: 0.001 | B3: 0.4994441027 | C3: 1019.958965 | F3: ΣFi= | G3: =G2*(1+B3) -> 0.05637909826 | H3: mol/s | I3: ΔrH= | J3: 80770 | K3: J/mol | M3: m3 | N3: m | O3: C | P3: K | R3: Acetone | S3: L= | T3: 1.79 | U3: m
B4: xA'= | C4: T'= | F4: cA0= | G4: 18.8 | H4: mol/m3 | I4: U= | J4: 110 | K4: J/m2-s-K | M4: 0 | N4: 0 | O4: 761.8 | P4: =O4+273.15 -> 1034.95 | Q4: 0.135 | R4: =1-Q4/$Q$4 -> 0 | S4: V= | T4: =T3*(3.14/4)*T1^2 -> 0.001000967174 | U4: m3
A5: 微分方程式→ | B5: =G6/G2 -> 372.3683597 | C5: =(-J5*(C3-J2)+(-G6)*J3)/(G3*J6) -> 20280.20608 | F5: k= | G5: =3.58*EXP(34222*(1/J1-1/C3)) -> 2.198481499 | H5: 1/s | I5: Ua= | J5: =J4*T2 -> 16485.57512 | K5: J/m3-s-K | M5: 0.0001 | N5: 0.1788270431 | O5: 736.4 | P5: =O5+273.15 -> 1009.55 | Q5: 0.122 | R5: =1-Q5/$Q$4 -> 0.0962962963
F6: -ra= | G6: =G5*G4*(1-B3)*(J1/C3)/(1+B3) -> 14.00105032 | H6: mol/m3-s | I6: Cp= | J6: 165 | K6: J/mol-K | M6: 0.0002 | N6: 0.3576540863 | O6: 733.1 | P6: 1006.25 | Q6: 0.114 | R6: 0.1555555556
A7: 積分区間V=[a, | B7: 0 | M7: 0.0003 | N7: 0.5364811294 | O7: 733.8 | P7: 1006.95 | Q7: 0.1075 | R7: 0.2037037037
A8: b] | B8: 0.001 | M8: 0.0004 | N8: 0.7153081726 | O8: 735.5 | P8: 1008.65 | Q8: 0.1012 | R8: 0.2503703704
A9: 積分刻み幅ΔV | B9: 5e-05 | M9: 0.0005 | N9: 0.8941352157 | O9: 737.6 | P9: 1010.75 | Q9: 0.095 | R9: 0.2962962963
A10: 計算結果 | M10: 0.0006 | N10: 1.072962259 | O10: 739.7 | P10: 1012.85 | Q10: 0.089 | R10: 0.3407407407
A11: V[m3] | B11: xA | C11: T[K] | M11: 0.0007 | N11: 1.251789302 | O11: 741.9 | P11: 1015.05 | Q11: 0.0832 | R11: 0.3837037037
A12: 0 | B12: 0 | C12: 1035 | M12: 0.0008 | N12: 1.430616345 | O12: 744.1 | P12: 1017.25 | Q12: 0.0775 | R12: 0.4259259259
A13: 5e-05 | B13: 0.06022691952 | C13: 1016.16599 | M13: 0.0009 | N13: 1.609443388 | O13: 746.3 | P13: 1019.45 | Q13: 0.072 | R13: 0.4666666667
A14: 0.0001 | B14: 0.09777332357 | C14: 1009.891437 | M14: 0.001 | N14: 1.788270431 | O14: 748.5 | P14: 1021.65 | Q14: 0.066 | R14: 0.5111111111
A15: 0.00015 | B15: 0.1283946772 | C15: 1007.351536
A16: 0.0002 | B16: 0.1557726692 | C16: 1006.456236
A17: 0.00025 | B17: 0.1813376824 | C17: 1006.391055
A18: 0.0003 | B18: 0.20576094 | C18: 1006.775676 | M18: 断熱条件 U=0
A19: 0.00035 | B19: 0.2293914382 | C19: 1007.414515 | M19: V | N19: L | O19: T | R19: xA
A20: 0.0004 | B20: 0.252422379 | C20: 1008.200966 | M20: m3 | N20: m | O20: C | P20: K | R20: Acetone
A21: 0.00045 | B21: 0.2749652557 | C21: 1009.074691 | M21: 0 | N21: 0 | O21: 761.8 | P21: =O21+273.15 -> 1034.95 | Q21: 0.132536 | R21: =1-Q21/$Q$4 -> 0.01825185185
A22: 0.0005 | B22: 0.2970863159 | C22: 1010.000647 | M22: 0.0001 | N22: 0.1788270431 | O22: 722.2 | P22: =O22+273.15 -> 995.35 | Q22: 0.124 | R22: =1-Q22/$Q$4 -> 0.08148148148
A23: 0.00055 | B23: 0.3188257632 | C23: 1010.958129 | M23: 0.0002 | N23: 0.3576540863 | O23: 706.7 | P23: 979.85 | Q23: 0.12 | R23: 0.1111111111
A24: 0.0006 | B24: 0.3402083599 | C24: 1011.934764 | M24: 0.0003 | N24: 0.5364811294 | O24: 696.99 | P24: 970.14 | Q24: 0.1175 | R24: 0.1296296296
A25: 0.00065 | B25: 0.361249486 | C25: 1012.923132 | M25: 0.0004 | N25: 0.7153081726 | O25: 689.95 | P25: 963.1 | Q25: 0.1156 | R25: 0.1437037037
A26: 0.0007 | B26: 0.3819586954 | C26: 1013.9188 | M26: 0.0005 | N26: 0.8941352157 | O26: 684.45 | P26: 957.6 | Q26: 0.114 | R26: 0.1555555556
A27: 0.00075 | B27: 0.4023418461 | C27: 1014.919164 | M27: 0.0006 | N27: 1.072962259 | O27: 679.9 | P27: 953.05 | Q27: 0.1129 | R27: 0.1637037037
A28: 0.0008 | B28: 0.4224024001 | C28: 1015.92275 | M28: 0.0007 | N28: 1.251789302 | O28: 676.11 | P28: 949.26 | Q28: 0.1119 | R28: 0.1711111111
A29: 0.00085 | B29: 0.442142229 | C29: 1016.928795 | M29: 0.0008 | N29: 1.430616345 | O29: 672.8 | P29: 945.95 | Q29: 0.111 | R29: 0.1777777778
A30: 0.0009 | B30: 0.4615621195 | C30: 1017.936979 | M30: 0.0009 | N30: 1.609443388 | O30: 669.9 | P30: 943.05 | Q30: 0.11 | R30: 0.1851851852
A31: 0.00095 | B31: 0.4806620961 | C31: 1018.947269 | M31: 0.001 | N31: 1.788270431 | O31: 667.3 | P31: 940.45 | Q31: 0.1095 | R31: 0.1888888889
A32: 0.001 | B32: 0.4994416291 | C32: 1019.959807
A41: 0 | B41: 0 | C41: 1035
A42: 5e-05 | B42: 0.05472317178 | C42: 1008.851286
A43: 0.0001 | B43: 0.08209890313 | C43: 996.3065415
A44: 0.00015 | B44: 0.1006467633 | C44: 987.9868894
A45: 0.0002 | B45: 0.1146936791 | C45: 981.7789877
A46: 0.00025 | B46: 0.1260022483 | C46: 976.8378666
A47: 0.0003 | B47: 0.1354672358 | C47: 972.7402773
A48: 0.00035 | B48: 0.143605831 | C48: 969.2441325
A49: 0.0004 | B49: 0.150744135 | C49: 966.1981105
A50: 0.00045 | B50: 0.1571010595 | C50: 963.501379
A51: 0.0005 | B51: 0.1628306996 | C51: 961.0834185
A52: 0.00055 | B52: 0.1680456386 | C52: 958.893001
A53: 0.0006 | B53: 0.1728306372 | C53: 956.8917567
A54: 0.00065 | B54: 0.1772511071 | C54: 955.0502125
A55: 0.0007 | B55: 0.1813585856 | C55: 953.3452462
A56: 0.00075 | B56: 0.1851944016 | C56: 951.7583882
A57: 0.0008 | B57: 0.1887922053 | C57: 950.2746555
A58: 0.00085 | B58: 0.1921797595 | C58: 948.8817284
A59: 0.0009 | B59: 0.1953802379 | C59: 947.5693562
A60: 0.00095 | B60: 0.1984131836 | C60: 946.3289203
A61: 0.001 | B61: 0.2012952299 | C61: 945.1531058

Sheet Stream report
B2: Stream | C2: Feed | D2: Products
B3: Pressure / [kPa] | C3: 162 | D3: 161.976
B4: Temperature / [K] | C4: 1035 | D4: 1021.68
B5: Flow rate / [mol / s] | C5: 0.0376 | D5: 0.0566607
B6: Flow Acetone / [mol / s] | C6: 0.0376 | D6: 0.0185393
B7: Mole frac Acetone | C7: 1 | D7: 0.327198
B8: Mole frac Methane | C8: 0 | D8: 0.336401
B9: Mole frac Ketene | C9: 0 | D9: 0.336401
